[Event "Early-Titled-Tuesday-Blitz-February-27-2024"]
[Site "Chess.com"]
[Date "2024.02.27"]
[Round "11"]
[White "emeli_chess"]
[Black "Ati1517"]
[Result "1-0"]
[WhiteElo "2442"]
[BlackElo "2234"]
[TimeControl "180+1"]
[EndTime "10:05:49 PST"]
[Termination "emeli_chess won by checkmate"]

1. d4 {[%clk 0:03:00.9]} 1... Nf6 {[%clk 0:02:56.9]} 2. c4 {[%clk 0:02:58.3]}
2... g6 {[%clk 0:02:57.1]} 3. Nc3 {[%clk 0:02:58.4]} 3... Bg7 {[%clk 0:02:56.3]}
4. e4 {[%clk 0:02:58.2]} 4... d6 {[%clk 0:02:55.7]} 5. f3 {[%clk 0:02:58.5]}
5... O-O {[%clk 0:02:55.8]} 6. Be3 {[%clk 0:02:58.2]} 6... e5 {[%clk 0:02:55.7]}
7. d5 {[%clk 0:02:58.3]} 7... c6 {[%clk 0:02:55.1]} 8. Bd3 {[%clk 0:02:58.4]}
8... cxd5 {[%clk 0:02:55]} 9. cxd5 {[%clk 0:02:59.1]} 9... Nbd7 {[%clk
0:02:54.9]} 10. Nge2 {[%clk 0:02:58.7]} 10... b6 {[%clk 0:02:54.6]} 11. O-O
{[%clk 0:02:57.6]} 11... Nc5 {[%clk 0:02:54.9]} 12. Bc2 {[%clk 0:02:56.1]} 12...
Nh5 {[%clk 0:02:50]} 13. b4 {[%clk 0:02:54.6]} 13... Nd7 {[%clk 0:02:49.8]} 14.
Rc1 {[%clk 0:02:37.8]} 14... f5 {[%clk 0:02:44.8]} 15. exf5 {[%clk 0:02:36.2]}
15... gxf5 {[%clk 0:02:45.7]} 16. Bxf5 {[%clk 0:02:24.9]} 16... Rxf5 {[%clk
0:02:39.2]} 17. g4 {[%clk 0:02:25.1]} 17... Rg5 {[%clk 0:01:59.1]} 18. Bxg5
{[%clk 0:02:20.5]} 18... Qxg5 {[%clk 0:02:00]} 19. Kh1 {[%clk 0:02:20.1]} 19...
Nf4 {[%clk 0:01:58.8]} 20. Ne4 {[%clk 0:02:12.9]} 20... Qe7 {[%clk 0:01:41.2]}
21. N2g3 {[%clk 0:02:08]} 21... Ba6 {[%clk 0:01:40.1]} 22. Nf5 {[%clk
0:02:05.2]} 22... Qf8 {[%clk 0:01:33.5]} 23. Rc7 {[%clk 0:01:50.3]} 23... Bxf1
{[%clk 0:01:29.3]} 24. Qxf1 {[%clk 0:01:49.9]} 24... Nf6 {[%clk 0:01:28.9]} 25.
Rxg7+ {[%clk 0:01:44.9]} 25... Kh8 {[%clk 0:01:27.4]} 26. Nxf6 {[%clk
0:01:15.4]} 26... Qxf6 {[%clk 0:01:25.3]} 27. Qc4 {[%clk 0:01:04.2]} 27... e4
{[%clk 0:01:18.9]} 28. Rc7 {[%clk 0:00:56.5]} 28... Qa1+ {[%clk 0:01:00.5]} 29.
Qc1 {[%clk 0:00:56.4]} 29... Qxc1+ {[%clk 0:00:54.7]} 30. Rxc1 {[%clk
0:00:55.6]} 30... exf3 {[%clk 0:00:54.2]} 31. Rf1 {[%clk 0:00:55.4]} 31... Re8
{[%clk 0:00:53.8]} 32. h4 {[%clk 0:00:53.2]} 32... Nxd5 {[%clk 0:00:47.9]} 33.
Rxf3 {[%clk 0:00:48.5]} 33... Re1+ {[%clk 0:00:47.6]} 34. Kh2 {[%clk 0:00:42.4]}
34... Re2+ {[%clk 0:00:47.6]} 35. Kg3 {[%clk 0:00:40.8]} 35... Rxa2 {[%clk
0:00:47]} 36. Rd3 {[%clk 0:00:37.5]} 36... Nxb4 {[%clk 0:00:44.2]} 37. Rxd6
{[%clk 0:00:37.3]} 37... Kg8 {[%clk 0:00:40.1]} 38. g5 {[%clk 0:00:25.6]} 38...
Kf7 {[%clk 0:00:24.1]} 39. h5 {[%clk 0:00:25.6]} 39... Ra3+ {[%clk 0:00:22]} 40.
Kg4 {[%clk 0:00:24.9]} 40... Ra4 {[%clk 0:00:22.1]} 41. g6+ {[%clk 0:00:24.9]}
41... hxg6 {[%clk 0:00:22.2]} 42. hxg6+ {[%clk 0:00:25.3]} 42... Kg8 {[%clk
0:00:22.2]} 43. Rd8# {[%clk 0:00:23.5]} 1-0

[Event "Early-Titled-Tuesday-Blitz-February-27-2024"]
[Site "Chess.com"]
[Date "2024.02.27"]
[Round "11"]
[White "PepeCuenca"]
[Black "rhungaski"]
[Result "1-0"]
[WhiteElo "2717"]
[BlackElo "2593"]
[TimeControl "180+1"]
[EndTime "10:05:52 PST"]
[Termination "PepeCuenca won on time"]

1. d4 {[%clk 0:03:00.9]} 1... Nf6 {[%clk 0:02:59.2]} 2. Bf4 {[%clk 0:03:00.4]}
2... d5 {[%clk 0:02:56.3]} 3. e3 {[%clk 0:03:00.7]} 3... c5 {[%clk 0:02:55.6]}
4. dxc5 {[%clk 0:03:01.6]} 4... Qa5+ {[%clk 0:02:44.1]} 5. Nd2 {[%clk
0:02:55.1]} 5... Nbd7 {[%clk 0:02:34.8]} 6. Nf3 {[%clk 0:02:49.6]} 6... g6
{[%clk 0:02:33.1]} 7. a3 {[%clk 0:02:44.6]} 7... Qxc5 {[%clk 0:02:28]} 8. Rc1
{[%clk 0:02:30.5]} 8... Nh5 {[%clk 0:02:10.7]} 9. Nb3 {[%clk 0:02:14.2]} 9...
Qb6 {[%clk 0:02:10.8]} 10. Qxd5 {[%clk 0:02:08.2]} 10... Nxf4 {[%clk 0:02:10.5]}
11. exf4 {[%clk 0:02:07.7]} 11... Bg7 {[%clk 0:02:10.7]} 12. c3 {[%clk 0:02:05]}
12... O-O {[%clk 0:02:09]} 13. Qb5 {[%clk 0:02:00.4]} 13... Qc7 {[%clk
0:02:08.9]} 14. g3 {[%clk 0:01:47.5]} 14... e5 {[%clk 0:01:15.4]} 15. fxe5
{[%clk 0:01:40.5]} 15... Nxe5 {[%clk 0:00:59.1]} 16. Nxe5 {[%clk 0:01:40.5]}
16... Bxe5 {[%clk 0:00:48.6]} 17. Bg2 {[%clk 0:01:37.4]} 17... Bd7 {[%clk
0:00:45.6]} 18. Qc5 {[%clk 0:01:29.5]} 18... Qb8 {[%clk 0:00:07.4]} 19. O-O
{[%clk 0:01:25.7]} 19... a5 {[%clk 0:00:05.2]} 20. Rfe1 {[%clk 0:00:50.5]} 20...
Bg7 {[%clk 0:00:04.5]} 21. Nxa5 {[%clk 0:00:41.6]} 21... b6 {[%clk 0:00:04.5]}
22. Qd5 {[%clk 0:00:41]} 22... bxa5 {[%clk 0:00:04.5]} 23. Qxd7 {[%clk
0:00:40.3]} 23... Ra7 {[%clk 0:00:02.8]} 24. Qd2 {[%clk 0:00:40.1]} 24... Rd8
{[%clk 0:00:02.5]} 25. Qc2 {[%clk 0:00:38.1]} 25... Rad7 {[%clk 0:00:02.8]} 26.
Re2 {[%clk 0:00:35.3]} 26... a4 {[%clk 0:00:02.1]} 27. Bc6 {[%clk 0:00:31.9]}
27... Rd6 {[%clk 0:00:01.4]} 28. Bxa4 {[%clk 0:00:31]} 28... h5 {[%clk
0:00:02.3]} 29. c4 {[%clk 0:00:26.4]} 29... h4 {[%clk 0:00:01.7]} 30. c5 {[%clk
0:00:27]} 30... Rd4 {[%clk 0:00:02.1]} 31. Bc6 {[%clk 0:00:25.3]} 31... Kh7
{[%clk 0:00:02]} 32. Bg2 {[%clk 0:00:22.5]} 32... Bh6 {[%clk 0:00:02.5]} 33. Rf1
{[%clk 0:00:22]} 33... Rd2 {[%clk 0:00:02.7]} 34. Rxd2 {[%clk 0:00:20.5]} 34...
Rxd2 {[%clk 0:00:03.6]} 35. Qc4 {[%clk 0:00:21.1]} 35... Qxb2 {[%clk 0:00:02]}
36. Qxf7+ {[%clk 0:00:20.9]} 36... Bg7 {[%clk 0:00:02.6]} 37. Be4 {[%clk
0:00:18.5]} 1-0

[Event "Early-Titled-Tuesday-Blitz-February-27-2024"]
[Site "Chess.com"]
[Date "2024.02.27"]
[Round "11"]
[White "LiamPutnam2008"]
[Black "BogdanDeac"]
[Result "0-1"]
[WhiteElo "2792"]
[BlackElo "2977"]
[TimeControl "180+1"]
[EndTime "10:05:54 PST"]
[Termination "BogdanDeac won on time"]

1. e4 {[%clk 0:03:00.9]} 1... c5 {[%clk 0:02:59.5]} 2. Nf3 {[%clk 0:02:55.8]}
2... d6 {[%clk 0:02:59.8]} 3. d4 {[%clk 0:02:55.9]} 3... cxd4 {[%clk 0:03:00.1]}
4. Nxd4 {[%clk 0:02:56.8]} 4... Nf6 {[%clk 0:03:00.4]} 5. Nc3 {[%clk 0:02:56.9]}
5... e5 {[%clk 0:03:00.5]} 6. Bb5+ {[%clk 0:02:55.4]} 6... Nbd7 {[%clk
0:03:00.2]} 7. Nf5 {[%clk 0:02:54.9]} 7... a6 {[%clk 0:03:00.2]} 8. Bxd7+ {[%clk
0:02:34.6]} 8... Qxd7 {[%clk 0:03:01.1]} 9. O-O {[%clk 0:02:29]} 9... Qc6 {[%clk
0:02:38]} 10. Qf3 {[%clk 0:02:03.2]} 10... h6 {[%clk 0:02:11.5]} 11. Rd1 {[%clk
0:01:33]} 11... Be6 {[%clk 0:01:59.6]} 12. Ne3 {[%clk 0:01:13.2]} 12... Be7
{[%clk 0:01:54.3]} 13. h3 {[%clk 0:00:54.9]} 13... b5 {[%clk 0:01:52.2]} 14. a4
{[%clk 0:00:49.4]} 14... O-O {[%clk 0:01:51.5]} 15. Ncd5 {[%clk 0:00:37.2]}
15... Bxd5 {[%clk 0:01:29.3]} 16. exd5 {[%clk 0:00:38.1]} 16... Qd7 {[%clk
0:01:29.6]} 17. axb5 {[%clk 0:00:26.1]} 17... axb5 {[%clk 0:01:29.3]} 18. Rxa8
{[%clk 0:00:27]} 18... Rxa8 {[%clk 0:01:29.4]} 19. Bd2 {[%clk 0:00:27.5]} 19...
Bd8 {[%clk 0:01:16.8]} 20. Nf5 {[%clk 0:00:20.2]} 20... h5 {[%clk 0:01:04.7]}
21. Bb4 {[%clk 0:00:09.4]} 21... Ra6 {[%clk 0:00:55.6]} 22. Re1 {[%clk
0:00:09.5]} 22... g6 {[%clk 0:00:53]} 23. Ng3 {[%clk 0:00:06.4]} 23... Kg7
{[%clk 0:00:49.6]} 24. b3 {[%clk 0:00:05.6]} 24... Ra2 {[%clk 0:00:46.2]} 25.
Qd3 {[%clk 0:00:04.6]} 25... Ba5 {[%clk 0:00:43.9]} 26. Bxa5 {[%clk 0:00:04.7]}
26... Rxa5 {[%clk 0:00:44.6]} 27. c4 {[%clk 0:00:03.4]} 27... bxc4 {[%clk
0:00:41.7]} 28. bxc4 {[%clk 0:00:04.3]} 28... Qc7 {[%clk 0:00:41.8]} 29. Ne4
{[%clk 0:00:04.1]} 29... Nxe4 {[%clk 0:00:41.1]} 30. Rxe4 {[%clk 0:00:05]} 30...
Ra1+ {[%clk 0:00:30.8]} 31. Kh2 {[%clk 0:00:05.3]} 31... Qb6 {[%clk 0:00:31.4]}
32. Qe3 {[%clk 0:00:04.1]} 32... Qb1 {[%clk 0:00:31.6]} 33. c5 {[%clk
0:00:03.3]} 33... f5 {[%clk 0:00:31.4]} 34. Rc4 {[%clk 0:00:02.8]} 34... Qh1+
{[%clk 0:00:16]} 35. Kg3 {[%clk 0:00:03.3]} 35... Rg1 {[%clk 0:00:16.4]} 36. Qf3
{[%clk 0:00:02.4]} 36... g5 {[%clk 0:00:10.9]} 0-1

[Event "Early-Titled-Tuesday-Blitz-February-27-2024"]
[Site "Chess.com"]
[Date "2024.02.27"]
[Round "11"]
[White "HATilay"]
[Black "Kirill_Klukin"]
[Result "0-1"]
[WhiteElo "2635"]
[BlackElo "2833"]
[TimeControl "180+1"]
[EndTime "10:05:56 PST"]
[Termination "Kirill_Klukin won by checkmate"]

1. e4 {[%clk 0:03:00.9]} 1... c5 {[%clk 0:02:59.2]} 2. Nf3 {[%clk 0:03:00.8]}
2... Nc6 {[%clk 0:02:58.9]} 3. Bb5 {[%clk 0:03:00.5]} 3... g6 {[%clk 0:02:59]}
4. Bxc6 {[%clk 0:03:00.5]} 4... bxc6 {[%clk 0:02:59.8]} 5. O-O {[%clk
0:03:00.6]} 5... Bg7 {[%clk 0:03:00.5]} 6. d3 {[%clk 0:03:00.9]} 6... d6 {[%clk
0:02:59.7]} 7. h3 {[%clk 0:03:01]} 7... e5 {[%clk 0:02:59.9]} 8. Nc3 {[%clk
0:02:56.7]} 8... Ne7 {[%clk 0:03:00.2]} 9. Nh2 {[%clk 0:02:57.1]} 9... O-O
{[%clk 0:02:59.6]} 10. f4 {[%clk 0:02:57.8]} 10... f5 {[%clk 0:02:59.7]} 11.
fxe5 {[%clk 0:02:46]} 11... Bxe5 {[%clk 0:02:58.8]} 12. Nf3 {[%clk 0:02:45.9]}
12... Bg7 {[%clk 0:02:52.3]} 13. Bg5 {[%clk 0:02:24]} 13... h6 {[%clk
0:02:51.9]} 14. Be3 {[%clk 0:02:03.4]} 14... g5 {[%clk 0:02:51.1]} 15. d4 {[%clk
0:02:01]} 15... fxe4 {[%clk 0:02:31.8]} 16. Nxe4 {[%clk 0:01:57.3]} 16... Nf5
{[%clk 0:02:10.9]} 17. Bf2 {[%clk 0:01:56.5]} 17... c4 {[%clk 0:01:59.8]} 18. c3
{[%clk 0:01:31.9]} 18... Be6 {[%clk 0:01:59.2]} 19. Qa4 {[%clk 0:01:21.8]} 19...
Bd5 {[%clk 0:01:57]} 20. Rae1 {[%clk 0:01:22.1]} 20... Qd7 {[%clk 0:01:51.1]}
21. Nfd2 {[%clk 0:01:18.7]} 21... Rae8 {[%clk 0:01:48.4]} 22. b3 {[%clk
0:00:50]} 22... cxb3 {[%clk 0:01:48.4]} 23. axb3 {[%clk 0:00:50.1]} 23... Re7
{[%clk 0:01:11.9]} 24. Qa1 {[%clk 0:00:24.9]} 24... Rfe8 {[%clk 0:01:05.9]} 25.
Qb1 {[%clk 0:00:25.3]} 25... Bf7 {[%clk 0:00:58.3]} 26. Ng3 {[%clk 0:00:19.4]}
26... Nh4 {[%clk 0:00:46.9]} 27. c4 {[%clk 0:00:12.5]} 27... Bg6 {[%clk
0:00:44.1]} 28. Qd1 {[%clk 0:00:10.8]} 28... Bd3 {[%clk 0:00:35.3]} 29. Rxe7
{[%clk 0:00:10.5]} 29... Rxe7 {[%clk 0:00:36.2]} 30. Re1 {[%clk 0:00:10.7]}
30... Rf7 {[%clk 0:00:37]} 31. Re3 {[%clk 0:00:09.5]} 31... Bxd4 {[%clk
0:00:27.9]} 32. Rxd3 {[%clk 0:00:08.2]} 32... Bxf2+ {[%clk 0:00:28.4]} 33. Kh2
{[%clk 0:00:08.8]} 33... Qe6 {[%clk 0:00:18.3]} 34. Nde4 {[%clk 0:00:08.6]}
34... Bxg3+ {[%clk 0:00:17.5]} 35. Nxg3 {[%clk 0:00:08.6]} 35... Rf2 {[%clk
0:00:15.1]} 36. Rxd6 {[%clk 0:00:04.5]} 36... Rxg2+ {[%clk 0:00:14.9]} 37. Kh1
{[%clk 0:00:05.2]} 37... Qxh3# {[%clk 0:00:15.8]} 0-1

[Event "Early-Titled-Tuesday-Blitz-February-27-2024"]
[Site "Chess.com"]
[Date "2024.02.27"]
[Round "11"]
[White "karinachess1"]
[Black "N4700000"]
[Result "0-1"]
[WhiteElo "2609"]
[BlackElo "2492"]
[TimeControl "180+1"]
[EndTime "10:05:58 PST"]
[Termination "N4700000 won on time"]

1. d4 {[%clk 0:03:00.9]} 1... Nf6 {[%clk 0:02:59]} 2. c4 {[%clk 0:03:01.3]} 2...
Nc6 {[%clk 0:02:59.1]} 3. Nc3 {[%clk 0:03:01.4]} 3... e5 {[%clk 0:02:57.9]} 4.
dxe5 {[%clk 0:02:54.9]} 4... Nxe5 {[%clk 0:02:57.6]} 5. e4 {[%clk 0:02:55.3]}
5... Bb4 {[%clk 0:02:55.5]} 6. f4 {[%clk 0:02:34.9]} 6... Ng6 {[%clk 0:02:50.3]}
7. e5 {[%clk 0:02:28]} 7... Ne4 {[%clk 0:02:29.7]} 8. Qf3 {[%clk 0:02:27.8]}
8... d5 {[%clk 0:02:08.1]} 9. Ne2 {[%clk 0:01:28.6]} 9... Bf5 {[%clk 0:01:32.4]}
10. Be3 {[%clk 0:01:23.4]} 10... Nh4 {[%clk 0:01:15]} 11. Qh5 {[%clk 0:01:15.7]}
11... g6 {[%clk 0:01:11.2]} 12. Qh6 {[%clk 0:01:14.4]} 12... Bf8 {[%clk
0:01:10.8]} 13. Qxh4 {[%clk 0:00:57.9]} 13... Qxh4+ {[%clk 0:01:09.6]} 14. g3
{[%clk 0:00:58.8]} 14... Qd8 {[%clk 0:00:59.9]} 15. cxd5 {[%clk 0:00:52.5]}
15... Bb4 {[%clk 0:00:55]} 16. O-O-O {[%clk 0:00:49.7]} 16... Nxc3 {[%clk
0:00:49.3]} 17. Nxc3 {[%clk 0:00:50.6]} 17... Bxc3 {[%clk 0:00:46]} 18. bxc3
{[%clk 0:00:51.5]} 18... O-O {[%clk 0:00:45.1]} 19. Bc4 {[%clk 0:00:47.8]} 19...
Qe7 {[%clk 0:00:38.3]} 20. Kb2 {[%clk 0:00:47.5]} 20... Rfd8 {[%clk 0:00:36.5]}
21. Rhe1 {[%clk 0:00:41.1]} 21... b5 {[%clk 0:00:36]} 22. Bb3 {[%clk 0:00:41]}
22... a5 {[%clk 0:00:36.3]} 23. a3 {[%clk 0:00:41.6]} 23... b4 {[%clk
0:00:32.3]} 24. cxb4 {[%clk 0:00:41.5]} 24... axb4 {[%clk 0:00:30.6]} 25. a4
{[%clk 0:00:42.1]} 25... Qd7 {[%clk 0:00:23.4]} 26. Bc5 {[%clk 0:00:33.6]} 26...
Rxa4 {[%clk 0:00:19.4]} 27. e6 {[%clk 0:00:25.4]} 27... Qb5 {[%clk 0:00:19.3]}
28. exf7+ {[%clk 0:00:22.5]} 28... Kxf7 {[%clk 0:00:19.1]} 29. d6+ {[%clk
0:00:22.8]} 29... Kg7 {[%clk 0:00:18.2]} 30. Re7+ {[%clk 0:00:08.5]} 30... Kh6
{[%clk 0:00:17.8]} 31. Bd4 {[%clk 0:00:02.6]} 31... cxd6 {[%clk 0:00:15.6]} 32.
h3 {[%clk 0:00:02]} 32... Ra3 {[%clk 0:00:11.9]} 33. Bg7+ {[%clk 0:00:01.2]}
33... Kh5 {[%clk 0:00:12]} 34. g4+ {[%clk 0:00:02.1]} 34... Kh4 {[%clk
0:00:11.4]} 35. Bf6+ {[%clk 0:00:02]} 35... Kg3 {[%clk 0:00:11.3]} 36. Re3+
{[%clk 0:00:01.1]} 36... Kxf4 {[%clk 0:00:11]} 0-1

[Event "Early-Titled-Tuesday-Blitz-February-27-2024"]
[Site "Chess.com"]
[Date "2024.02.27"]
[Round "11"]
[White "Barbix1"]
[Black "gm_rashid"]
[Result "0-1"]
[WhiteElo "2284"]
[BlackElo "2416"]
[TimeControl "180+1"]
[EndTime "10:05:59 PST"]
[Termination "gm_rashid won on time"]

1. e4 {[%clk 0:03:00.9]} 1... d5 {[%clk 0:02:58.1]} 2. exd5 {[%clk 0:02:59.2]}
2... Nf6 {[%clk 0:02:58.4]} 3. d4 {[%clk 0:02:50.3]} 3... Bg4 {[%clk 0:02:56.1]}
4. Be2 {[%clk 0:02:46.4]} 4... Bxe2 {[%clk 0:02:55.4]} 5. Nxe2 {[%clk
0:02:47.3]} 5... Qxd5 {[%clk 0:02:56.1]} 6. O-O {[%clk 0:02:46.2]} 6... Nc6
{[%clk 0:02:55.8]} 7. c3 {[%clk 0:02:32.6]} 7... O-O-O {[%clk 0:02:55.3]} 8. b4
{[%clk 0:02:30.5]} 8... e5 {[%clk 0:02:54.9]} 9. Bb2 {[%clk 0:02:20.7]} 9...
exd4 {[%clk 0:02:52.5]} 10. cxd4 {[%clk 0:02:14.2]} 10... Bxb4 {[%clk
0:02:51.8]} 11. Nbc3 {[%clk 0:02:09.9]} 11... Qh5 {[%clk 0:02:51.1]} 12. Qd3
{[%clk 0:01:51.7]} 12... Bd6 {[%clk 0:02:46.5]} 13. Ng3 {[%clk 0:01:50.1]} 13...
Qg6 {[%clk 0:02:44.3]} 14. Qb5 {[%clk 0:01:40.7]} 14... a6 {[%clk 0:02:32.5]}
15. Qc4 {[%clk 0:01:33.7]} 15... h5 {[%clk 0:02:30.6]} 16. Rfc1 {[%clk 0:01:02]}
16... h4 {[%clk 0:02:30.4]} 17. Nf1 {[%clk 0:01:02.1]} 17... h3 {[%clk
0:02:29.9]} 18. g3 {[%clk 0:01:02]} 18... Qf5 {[%clk 0:02:17.4]} 19. Ne3 {[%clk
0:00:48.4]} 19... Qf3 {[%clk 0:02:16.6]} 20. d5 {[%clk 0:00:44.3]} 20... Ne5
{[%clk 0:02:10]} 21. Qd4 {[%clk 0:00:39.2]} 21... Neg4 {[%clk 0:01:57.4]} 22.
Ncd1 {[%clk 0:00:38.9]} 22... Rhe8 {[%clk 0:01:53]} 23. Rc2 {[%clk 0:00:32.7]}
23... Nxe3 {[%clk 0:01:45.7]} 24. Nxe3 {[%clk 0:00:31.5]} 24... Kb8 {[%clk
0:01:25.1]} 25. Rac1 {[%clk 0:00:30.1]} 25... Re4 {[%clk 0:01:09.9]} 26. Qd3
{[%clk 0:00:16.4]} 26... Rde8 {[%clk 0:01:06.3]} 27. Bd4 {[%clk 0:00:16.4]}
27... Nxd5 {[%clk 0:01:00.1]} 28. Rb1 {[%clk 0:00:14.3]} 28... Nb4 {[%clk
0:00:54.1]} 29. Qb3 {[%clk 0:00:09.4]} 29... Rxe3 {[%clk 0:00:48.6]} 30. fxe3
{[%clk 0:00:08.5]} 30... Nxc2 {[%clk 0:00:46.8]} 31. Qxc2 {[%clk 0:00:07]} 31...
c5 {[%clk 0:00:37.7]} 32. Ba1 {[%clk 0:00:04.7]} 32... Qxe3+ {[%clk 0:00:36.6]}
33. Qf2 {[%clk 0:00:04.6]} 33... Qd3 {[%clk 0:00:28.6]} 34. Rf1 {[%clk
0:00:03.4]} 34... Re2 {[%clk 0:00:27.3]} 35. Qxf7 {[%clk 0:00:01.8]} 35... Rg2+
{[%clk 0:00:27.4]} 36. Kh1 {[%clk 0:00:00.9]} 36... Qe2 {[%clk 0:00:22.9]} 0-1

[Event "Early-Titled-Tuesday-Blitz-February-27-2024"]
[Site "Chess.com"]
[Date "2024.02.27"]
[Round "11"]
[White "kuba2006"]
[Black "GodzillaChessYoutube"]
[Result "0-1"]
[WhiteElo "2489"]
[BlackElo "2662"]
[TimeControl "180+1"]
[EndTime "10:06:01 PST"]
[Termination "GodzillaChessYoutube won by resignation"]

1. e4 {[%clk 0:02:58.9]} 1... Nh6 {[%clk 0:03:00.9]} 2. d4 {[%clk 0:02:57.8]}
2... d5 {[%clk 0:02:57.8]} 3. exd5 {[%clk 0:02:39]} 3... Qxd5 {[%clk 0:02:58.7]}
4. Nc3 {[%clk 0:02:36.9]} 4... Qd8 {[%clk 0:02:57.8]} 5. Bxh6 {[%clk 0:02:33.1]}
5... gxh6 {[%clk 0:02:57.9]} 6. Bc4 {[%clk 0:02:33.1]} 6... Bf5 {[%clk
0:02:52.8]} 7. Qf3 {[%clk 0:02:19.6]} 7... e6 {[%clk 0:02:43.2]} 8. Qxb7 {[%clk
0:02:15.9]} 8... Nd7 {[%clk 0:02:43.7]} 9. Bb5 {[%clk 0:02:02.6]} 9... Rc8
{[%clk 0:02:39.2]} 10. O-O-O {[%clk 0:01:56]} 10... Bd6 {[%clk 0:02:29.9]} 11.
Qc6 {[%clk 0:01:48.6]} 11... Rb8 {[%clk 0:02:20.3]} 12. d5 {[%clk 0:00:37.7]}
12... Qg5+ {[%clk 0:01:58.9]} 13. Kb1 {[%clk 0:00:33.1]} 13... e5 {[%clk
0:01:59.3]} 14. Nf3 {[%clk 0:00:30.7]} 14... Qf6 {[%clk 0:01:20.3]} 15. h3
{[%clk 0:00:17]} 15... O-O {[%clk 0:01:08.3]} 16. g4 {[%clk 0:00:16.4]} 16...
Nc5 {[%clk 0:01:04.4]} 17. gxf5 {[%clk 0:00:06.5]} 17... Rb6 {[%clk 0:01:03.8]}
18. Rhg1+ {[%clk 0:00:07.4]} 18... Kh8 {[%clk 0:01:02.8]} 19. Nd2 {[%clk
0:00:07.3]} 19... Rxc6 {[%clk 0:01:01.3]} 20. Bxc6 {[%clk 0:00:08.2]} 20... Qxf5
{[%clk 0:01:00.2]} 21. f3 {[%clk 0:00:08.4]} 21... Qxh3 {[%clk 0:00:53]} 22. b3
{[%clk 0:00:07.2]} 22... f5 {[%clk 0:00:50]} 23. b4 {[%clk 0:00:07.3]} 23... Rb8
{[%clk 0:00:44.4]} 24. Nb5 {[%clk 0:00:07.1]} 24... a6 {[%clk 0:00:43.1]} 25.
bxc5 {[%clk 0:00:07]} 25... Bxc5 {[%clk 0:00:39.7]} 26. Rge1 {[%clk 0:00:04.8]}
26... Bd6 {[%clk 0:00:30.3]} 27. Nc4 {[%clk 0:00:04.6]} 27... axb5 {[%clk
0:00:30.2]} 28. Nxe5 {[%clk 0:00:05.2]} 28... Bxe5 {[%clk 0:00:23.4]} 29. Rxe5
{[%clk 0:00:06.1]} 29... Qxf3 {[%clk 0:00:23.6]} 30. Rde1 {[%clk 0:00:06.1]}
30... h5 {[%clk 0:00:15.6]} 31. Re7 {[%clk 0:00:05.6]} 31... Qg3 {[%clk
0:00:14.8]} 32. Rf7 {[%clk 0:00:04.2]} 32... Qxe1+ {[%clk 0:00:14.2]} 33. Kb2
{[%clk 0:00:04.3]} 33... Qb4+ {[%clk 0:00:14.6]} 34. Kc1 {[%clk 0:00:05.2]}
34... Qf4+ {[%clk 0:00:14.8]} 35. Kb1 {[%clk 0:00:05.2]} 35... h4 {[%clk
0:00:15.3]} 36. Bd7 {[%clk 0:00:04.5]} 36... h3 {[%clk 0:00:15.5]} 37. Bxf5
{[%clk 0:00:05.4]} 37... Qh6 {[%clk 0:00:13.7]} 38. Rxh7+ {[%clk 0:00:05.1]} 0-1

[Event "Early-Titled-Tuesday-Blitz-February-27-2024"]
[Site "Chess.com"]
[Date "2024.02.27"]
[Round "11"]
[White "UnTucopalaTimba"]
[Black "abelmat"]
[Result "1-0"]
[WhiteElo "1996"]
[BlackElo "2069"]
[TimeControl "180+1"]
[EndTime "10:06:03 PST"]
[Termination "UnTucopalaTimba won on time"]

1. e4 {[%clk 0:03:00.7]} 1... e6 {[%clk 0:02:59.8]} 2. d4 {[%clk 0:03:00.5]}
2... d5 {[%clk 0:03:00.6]} 3. exd5 {[%clk 0:03:00.6]} 3... exd5 {[%clk
0:03:00.7]} 4. Bd3 {[%clk 0:03:00.8]} 4... Nf6 {[%clk 0:03:01.6]} 5. Ne2 {[%clk
0:03:00.4]} 5... Bd6 {[%clk 0:03:00]} 6. Bf4 {[%clk 0:02:59.9]} 6... O-O {[%clk
0:02:59.1]} 7. O-O {[%clk 0:02:55.8]} 7... Bg4 {[%clk 0:02:58.8]} 8. f3 {[%clk
0:02:55.5]} 8... Bh5 {[%clk 0:02:57.3]} 9. c3 {[%clk 0:02:53.5]} 9... Bg6 {[%clk
0:02:54.8]} 10. Qc2 {[%clk 0:02:51.6]} 10... Re8 {[%clk 0:02:49.4]} 11. Bxd6
{[%clk 0:02:49.1]} 11... Qxd6 {[%clk 0:02:48.4]} 12. Re1 {[%clk 0:02:41.6]}
12... Nbd7 {[%clk 0:02:47.3]} 13. Nd2 {[%clk 0:02:38.5]} 13... Re3 {[%clk
0:02:42.7]} 14. Bxg6 {[%clk 0:02:34.1]} 14... hxg6 {[%clk 0:02:41.6]} 15. Nf1
{[%clk 0:02:34.1]} 15... Re6 {[%clk 0:02:29.9]} 16. Qd2 {[%clk 0:02:31.7]} 16...
Rae8 {[%clk 0:02:29.7]} 17. Kf2 {[%clk 0:02:24]} 17... Nh5 {[%clk 0:02:19.6]}
18. g3 {[%clk 0:02:20.1]} 18... Nhf6 {[%clk 0:01:54.9]} 19. Nf4 {[%clk 0:02:17]}
19... Rxe1 {[%clk 0:01:43.9]} 20. Rxe1 {[%clk 0:02:16.3]} 20... Rxe1 {[%clk
0:01:34.9]} 21. Qxe1 {[%clk 0:02:16.2]} 21... Qb6 {[%clk 0:01:34.1]} 22. Qe2
{[%clk 0:02:11.5]} 22... c5 {[%clk 0:01:28.8]} 23. dxc5 {[%clk 0:02:07.1]} 23...
Nxc5 {[%clk 0:01:23.6]} 24. Kg2 {[%clk 0:02:05.5]} 24... g5 {[%clk 0:01:14.4]}
25. Nh3 {[%clk 0:01:57.9]} 25... Ne6 {[%clk 0:01:13.3]} 26. Ne3 {[%clk
0:01:50.9]} 26... d4 {[%clk 0:01:09]} 27. cxd4 {[%clk 0:01:28.1]} 27... Nxd4
{[%clk 0:01:06.4]} 28. Qd2 {[%clk 0:01:25.1]} 28... g6 {[%clk 0:00:43.3]} 29.
Nf2 {[%clk 0:01:22.5]} 29... Nc6 {[%clk 0:00:36.9]} 30. Nfg4 {[%clk 0:01:18.1]}
30... Nxg4 {[%clk 0:00:36]} 31. Nxg4 {[%clk 0:01:16.8]} 31... Qc5 {[%clk
0:00:24.4]} 32. Qe2 {[%clk 0:00:59.2]} 32... Kg7 {[%clk 0:00:17]} 33. b3 {[%clk
0:00:56.7]} 33... f5 {[%clk 0:00:15.2]} 34. Qb2+ {[%clk 0:00:51.3]} 34... Kg8
{[%clk 0:00:10.8]} 35. Nf6+ {[%clk 0:00:48.9]} 35... Kf7 {[%clk 0:00:10.7]} 36.
Nh7 {[%clk 0:00:45.8]} 36... Nd4 {[%clk 0:00:08.8]} 37. Nxg5+ {[%clk 0:00:44.2]}
37... Kg8 {[%clk 0:00:07.3]} 38. h4 {[%clk 0:00:42.1]} 38... Qc2+ {[%clk
0:00:04.6]} 39. Qxc2 {[%clk 0:00:41.4]} 39... Nxc2 {[%clk 0:00:05.5]} 40. Ne6
{[%clk 0:00:39.5]} 40... Nb4 {[%clk 0:00:02.8]} 41. Nc5 {[%clk 0:00:37.4]} 41...
b6 {[%clk 0:00:01.2]} 42. Nd7 {[%clk 0:00:35.4]} 1-0